Workbook

Sheet ANEXO-D
A1: COMANDO DA AERONÁUTICA FICHA INFORMATIVA DE AUXÍLIOS À NAVEGAÇÃO AÉREA Anexo D à ICA 63-19
A3: Características dos Auxílios à Navegação Aérea e das Superfícies Limitadoras de Obstáculos
A5: A | B5: Equipamento Medidor de Distâncias (DME): | C5: DME 1 | D5: DME 2 | E5: DME 3 | F5: DME 4
A6: A1 | B6: Indicativo:
A7: A2 | B7: Coordenadas geográficas (latitude):
A8: A3 | B8: Coordenadas geográficas (longitude):
A9: A4 | B9: Raio da seção horizontal (m):
A10: A5 | B10: Cota da seção horizontal (m):
A11: A6 | B11: Raio menor da seção em rampa (m):
A12: A7 | B12: Raio maior da seção em rampa (m):
A13: A8 | B13: Cota inferior da seção em rampa (m):
A14: A9 | B14: Cota superior da seção em rampa (m):
A15: A10 | B15: Gradiente da seção em rampa (%):
A17: B | B17: Radiofarol Não Direcional (NDB): | C17: =NDB!C2 -> NDB 1 | D17: =NDB!D2 -> NDB 2 | E17: =NDB!E2 -> NDB 3 | F17: =NDB!F2 -> NDB 4
A18: B1 | B18: Indicativo:
A19: B2 | B19: Coordenadas geográficas (latitude):
A20: B3 | B20: Coordenadas geográficas (longitude):
A21: B4 | B21: Raio da seção horizontal:
A22: B5 | B22: Cota da seção horizontal:
A23: B6 | B23: Raio menor da seção em rampa:
A24: B7 | B24: Raio maior da seção em rampa:
A25: B8 | B25: Cota inferior da seção em rampa:
A26: B9 | B26: Cota superior da seção em rampa:
A27: B10 | B27: Gradiente da seção em rampa:
A29: C | B29: Radiofarol Omnidirecional em VHF (VOR): | C29: =VOR!C2 -> VOR 1 | D29: =VOR!D2 -> VOR 2 | E29: =VOR!E2 -> VOR 3 | F29: =VOR!F2 -> VOR 4
A30: C1 | B30: Indicativo:
A31: C2 | B31: Coordenadas geográficas (latitude):
A32: C3 | B32: Coordenadas geográficas (longitude):
A33: C4 | B33: Raio da seção horizontal (m):
A34: C5 | B34: Cota da seção horizontal (m):
A35: C6 | B35: Raio menor da seção em rampa (m):
A36: C7 | B36: Raio maior da seção em rampa (m):
A37: C8 | B37: Cota inferior da seção em rampa (m):
A38: C9 | B38: Cota superior da seção em rampa (m):
A39: C10 | B39: Gradiente da seção em rampa (%):
A41: D | B41: Radiofarol Omnidirecional em VHF (DVOR): | C41: =DVOR!C2 -> DVOR 1 | D41: =DVOR!D2 -> DVOR 2 | E41: =DVOR!E2 -> DVOR 3 | F41: =DVOR!F2 -> DVOR 4
A42: D1 | B42: Indicativo:
A43: D2 | B43: Coordenadas geográficas (latitude):
A44: D3 | B44: Coordenadas geográficas (longitude):
A45: D4 | B45: Raio da seção horizontal (m):
A46: D5 | B46: Cota da seção horizontal (m):
A47: D6 | B47: Raio menor da seção em rampa (m):
A48: D7 | B48: Raio maior da seção em rampa (m):
A49: D8 | B49: Cota inferior da seção em rampa (m):
A50: D9 | B50: Cota superior da seção em rampa (m):
A51: D10 | B51: Gradiente da seção em rampa (%):
A53: E | B53: Transmissor de Dados VHF (VDB): | C53: =VDB!C2 -> VDB 1 | D53: =VDB!D2 -> VDB 2 | E53: =VDB!E2 -> VDB 3 | F53: =VDB!F2 -> VDB 4
A54: E1 | B54: Indicativo:
A55: E2 | B55: Coordenadas geográficas (latitude):
A56: E3 | B56: Coordenadas geográficas (longitude):
A57: E4 | B57: Raio da seção horizontal (m):
A58: E5 | B58: Cota da seção horizontal (m):
A59: E6 | B59: Raio menor da seção em rampa (m):
A60: E7 | B60: Raio maior da seção em rampa (m):
A61: E8 | B61: Cota inferior da seção em rampa (m):
A62: E9 | B62: Cota superior da seção em rampa (m):
A63: E10 | B63: Gradiente da seção em rampa (%):
A65: F | B65: Estação de Referência: | C65: =EST!C2 -> EST 1 | D65: =EST!D2 -> EST 2 | E65: =EST!E2 -> EST 3 | F65: =EST!F2 -> EST 4
A66: F1 | B66: Indicativo:
A67: F2 | B67: Coordenadas geográficas (latitude):
A68: F3 | B68: Coordenadas geográficas (longitude):
A69: F4 | B69: Raio da seção horizontal (m):
A70: F5 | B70: Cota da seção horizontal (m):
A71: F6 | B71: Raio menor da seção em rampa (m):
A72: F7 | B72: Raio maior da seção em rampa (m):
A73: F8 | B73: Cota inferior da seção em rampa (m):
A74: F9 | B74: Cota superior da seção em rampa (m):
A75: F10 | B75: Gradiente da seção em rampa (%):
A77: G | B77: Transmissor de Rampa de Planeio (GS): | C77: =GS!C2 -> GS 1 | D77: =GS!D2 -> GS 2 | E77: =GS!E2 -> GS 3 | F77: =GS!F2 -> GS 4
A78: G1 | B78: Cabeceira servida:
A79: G2 | B79: Coordenadas geográficas (latitude):
A80: G3 | B80: Coordenadas geográficas (longitude):
A81: G4 | B81: Comprimento da seção horizontal (m):
A82: G5 | B82: Largura da seção horizontal (m):
A83: G6 | B83: Cota da seção horizontal (m):
A84: G7 | B84: Comprimento da seção em rampa (m):
A85: G8 | B85: Largura da seção em rampa (m):
A86: G9 | B86: Cota inferior da seção em rampa (m):
A87: G10 | B87: Cota superior da seção em rampa (m):
A88: G11 | B88: Gradiente da seção em rampa (%):
A90: H | B90: Localizador (LOC): | C90: =LOC!C2 -> LOC 1 | D90: =LOC!D2 -> LOC 2 | E90: =LOC!E2 -> LOC 3 | F90: =LOC!F2 -> LOC 4
A91: H1 | B91: Indicativo:
A92: H2 | B92: Coordenadas geográficas (latitude):
A93: H3 | B93: Coordenadas geográficas (longitude):
A94: H4 | B94: Comprimento da seção horizontal (m):
A95: H5 | B95: Largura da seção horizontal (m):
A96: H6 | B96: Cota da seção horizontal (m):
A98: I | B98: Marcador: | C98: =MARC!C2 -> MARC 1 | D98: =MARC!D2 -> MARC 2 | E98: =MARC!E2 -> MARC 3 | F98: =MARC!F2 -> MARC 4
A99: I1 | B99: Indicativo:
A100: I2 | B100: Cabeceira servida:
A101: I3 | B101: Coordenadas geográficas (latitude):
A102: I4 | B102: Coordenadas geográficas (longitude):
A103: I5 | B103: Raio da seção horizontal (m):
A104: I6 | B104: Cota da seção horizontal (m):
A106: J | B106: Sistema de Iluminação de Aproximação (ALS): | C106: =ALS!C2 -> ALS 1 | D106: =ALS!D2 -> ALS 2 | E106: =ALS!E2 -> ALS 3 | F106: =ALS!F2 -> ALS 4
A107: J1 | B107: Cabeceira servida:
A108: J2 | B108: Comprimento da seção horizontal (m):
A109: J3 | B109: Largura da seção horizontal (m):
A110: J4 | B110: Cota da seção horizontal (m):
A111: J5 | B111: Comprimento da seção em rampa (m):
A112: J6 | B112: Largura da seção em rampa (m):
A113: J7 | B113: Cota inferior da seção em rampa (m):
A114: J8 | B114: Cota superior da seção em rampa (m):
A115: J9 | B115: Gradiente da seção em rampa (%):
A117: K | B117: Sistemas Indicadores de Rampa de Aproximação Visual (VASIS, PAPI e APAPI): | C117: =VASIS!C2 -> EQUIP 1 | D117: =VASIS!D2 -> EQUIP 2 | E117: =VASIS!E2 -> EQUIP 3 | F117: =VASIS!F2 -> EQUIP 4
A118: K1 | B118: Cabeceira servida:
A119: K2 | B119: Largura da borda interna (m):
A120: K3 | B120: Distância da cabeceira (m):
A121: K4 | B121: Elevação da borda interna (m):
A122: K5 | B122: Divergência (%):
A123: K6 | B123: Comprimento (m):
A124: K7 | B124: Gradiente (%):
A125: K8 | B125: Elevação da borda externa (m):
A127: L | B127: Radar de Vigilância (ASR) / Meteorológico: | C127: =ASR!C2 -> EQUIP 1 | D127: =ASR!D2 -> EQUIP 2 | E127: =ASR!E2 -> EQUIP 3 | F127: =ASR!F2 -> EQUIP 4
A128: L1 | B128: Coordenadas geográficas (latitude):
A129: L2 | B129: Coordenadas geográficas (longitude):
A130: L3 | B130: Raio da seção horizontal (m):
A131: L4 | B131: Cota da seção horizontal (m):
A132: L5 | B132: Raio menor da seção em rampa (m):
A133: L6 | B133: Raio maior da seção em rampa (m):
A134: L7 | B134: Cota inferior da seção em rampa (m):
A135: L8 | B135: Cota superior da seção em rampa (m):
A136: L9 | B136: Gradiente da seção em rampa (%):
A138: M | B138: Vigilância com Localização Automática Dependente por Radiodifusão (ADS-B): | C138: =ADSB!C2 -> ADS-B 1 | D138: =ADSB!D2 -> ADS-B 2 | E138: =ADSB!E2 -> ADS-B 3 | F138: =ADSB!F2 -> ADS-B 4
A139: M1 | B139: Coordenadas geográficas (latitude):
A140: M2 | B140: Coordenadas geográficas (longitude):
A141: M3 | B141: Raio da seção horizontal (m):
A142: M4 | B142: Cota da seção horizontal (m):
A143: M5 | B143: Raio menor da seção em rampa (m):
A144: M6 | B144: Raio maior da seção em rampa (m):
A145: M7 | B145: Cota inferior da seção em rampa (m):
A146: M8 | B146: Cota superior da seção em rampa (m):
A147: M9 | B147: Gradiente da seção em rampa (%):
A149: N | B149: Radar de Aproximação de Precisão (PAR): | C149: =PAR!C2 -> PAR 1 | D149: =PAR!D2 -> PAR 2 | E149: =PAR!E2 -> PAR 3 | F149: =PAR!F2 -> PAR 4
A150: N1 | B150: Coordenadas geográficas (latitude):
A151: N2 | B151: Coordenadas geográficas (longitude):
A152: N3 | B152: Raio da seção horizontal 1 (m):
A153: N4 | B153: Cota da seção horizontal 1 (m):
A154: N5 | B154: Abertura para o lado da pista da seção horizontal 2 (%):
A155: N6 | B155: Abertura para o lado oposto da pista da seção horizontal 2 (%):
A156: N7 | B156: Raio da seção horizontal 2 (m):
A157: N8 | B157: Cota da seção horizontal 2 (m):
A158: N9 | B158: Abertura para o lado da pista da seção em rampa (%):
A159: N10 | B159: Abertura para o lado oposto da pista da em rampa (%):
A160: N11 | B160: Raio menor da seção em rampa (m):
A161: N12 | B161: Raio maior da seção em rampa (m):
A162: N13 | B162: Cota inferior da seção em rampa (m):
A163: N14 | B163: Cota superior da seção em rampa (m):
A164: N15 | B164: Gradiente da seção em rampa (%):

Sheet DME (hidden)
A2: A | B2: Equipamento Medidor de Distâncias (DME): | C2: DME 1 | D2: DME 2 | E2: DME 3 | F2: DME 4
A3: A1 | B3: Indicativo: | C3: teste | D3: ssss | E3: 1
A4: A2 | B4: Coordenadas geográficas (latitude): | C4: =C16*10000+C17*100+C18 -> 121212 | D4: =D16*10000+D17*100+D18 -> 10000 | E4: 10101 | F4: 10101
A5: A3 | B5: Coordenadas geográficas (longitude): | C5: =C19*10000+C20*100+C21 -> 444444 | D5: =D19*10000+D20*100+D21 -> 10000 | E5: 10101 | F5: 10101
A6: A4 | B6: Raio da seção horizontal (m): | C6: 100 | D6: 100 | E6: 100 | F6: 100
A7: A5 | B7: Cota da seção horizontal (m): | C7: =C15 -> 23 | D7: =D15 -> 1 | E7: =E15 -> 1 | F7: =F15 -> 1
A8: A6 | B8: Raio menor da seção em rampa (m): | C8: 100 | D8: 100 | E8: 100 | F8: 100
A9: A7 | B9: Raio maior da seção em rampa (m): | C9: 5100 | D9: 5100 | E9: 5100 | F9: 5100
A10: A8 | B10: Cota inferior da seção em rampa (m): | C10: =C7 -> 23 | D10: =D7 -> 1 | E10: =E7 -> 1 | F10: =F7 -> 1
A11: A9 | B11: Cota superior da seção em rampa (m): | C11: =C10+(C9-C8)*C12 -> 223 | D11: =D10+(D9-D8)*D12 -> 201 | E11: =E10+(E9-E8)*E12 -> 201 | F11: =F10+(F9-F8)*F12 -> 201
A12: A10 | B12: Gradiente da seção em rampa (%): | C12: 0.04 | D12: 0.04 | E12: 0.04 | F12: 0.04
B15: ALTITUDE DA BASE DA ANTENA DO DME | C15: 23 | D15: 1 | E15: 1 | F15: 1
B16: LATITUDE | C16: 12 | D16: 1 | E16: 1 | F16: 1
C17: 12 | E17: 1 | F17: 1
C18: 12 | E18: 1 | F18: 1
B19: LONGITUDE | C19: 44 | D19: 1 | E19: 1 | F19: 1
C20: 44 | E20: 1 | F20: 1
C21: 44 | E21: 1 | F21: 1

Sheet NDB (hidden)
A2: B | B2: Radiofarol Não Direcional (NDB): | C2: NDB 1 | D2: NDB 2 | E2: NDB 3 | F2: NDB 4
A3: B1 | B3: Indicativo: | C3: 1 | D3: 1 | E3: 1 | F3: 1
A4: B2 | B4: Coordenadas geográficas (latitude): | C4: =C16*10000+C17*100+C18 -> 10101 | D4: =D16*10000+D17*100+D18 -> 10101 | E4: 10101 | F4: 10101
A5: B3 | B5: Coordenadas geográficas (longitude): | C5: =C19*10000+C20*100+C21 -> 10101 | D5: =D19*10000+D20*100+D21 -> 10101 | E5: 10101 | F5: 10100
A6: B4 | B6: Raio da seção horizontal: | C6: =C14 -> 1 | D6: 1 | E6: 1 | F6: 1
A7: B5 | B7: Cota da seção horizontal: | C7: 1 | D7: 1 | E7: 1 | F7: 1
A8: B6 | B8: Raio menor da seção em rampa: | C8: =C14 -> 1 | D8: =D14 -> 1 | E8: =E14 -> 1 | F8: =F14 -> 1
A9: B7 | B9: Raio maior da seção em rampa: | C9: =C14+200 -> 201 | D9: =D14+200 -> 201 | E9: =E14+200 -> 201 | F9: =F14+200 -> 201
A10: B8 | B10: Cota inferior da seção em rampa: | C10: =C7 -> 1 | D10: =D7 -> 1 | E10: =E7 -> 1 | F10: =F7 -> 1
A11: B9 | B11: Cota superior da seção em rampa: | C11: =C15+C14 -> 2 | D11: =D15+D14 -> 2 | E11: =E15+E14 -> 2 | F11: =F15+F14 -> 2
A12: B10 | B12: Gradiente da seção em rampa: | C12: =C6/200 -> 0.005 | D12: =D6/200 -> 0.005 | E12: =E6/200 -> 0.005 | F12: =F6/200 -> 0.005
B14: Altura da antena | C14: 1 | D14: 1 | E14: 1 | F14: 1
B15: base da antena | C15: 1 | D15: 1 | E15: 1 | F15: 1
B16: LATITUDE | C16: 1 | D16: 1 | E16: 1 | F16: 1
C17: 1 | D17: 1 | E17: 1 | F17: 1
C18: 1 | D18: 1 | E18: 1 | F18: 1
B19: LONGITUDE | C19: 1 | D19: 1 | E19: 1 | F19: 1
C20: 1 | D20: 1 | E20: 1 | F20: 1
C21: 1 | D21: 1 | E21: 1

Sheet VOR (hidden)
A2: C | B2: Radiofarol Omnidirecional em VHF (VOR): | C2: VOR 1 | D2: VOR 2 | E2: VOR 3 | F2: VOR 4
A3: C1 | B3: Indicativo: | C3: 1 | D3: 1 | E3: 1 | F3: 1
A4: C2 | B4: Coordenadas geográficas (latitude): | C4: =C16*10000+C17*100+C18 -> 10101 | D4: =D16*10000+D17*100+D18 -> 10101 | E4: 10101 | F4: 10101
A5: C3 | B5: Coordenadas geográficas (longitude): | C5: =C19*10000+C20*100+C21 -> 10101 | D5: =D19*10000+D20*100+D21 -> 10101 | E5: 10101 | F5: 101
A6: C4 | B6: Raio da seção horizontal (m): | C6: 100 | D6: 100 | E6: 100 | F6: 100
A7: C5 | B7: Cota da seção horizontal (m): | C7: =C15 -> 1 | D7: =D15 -> 1 | E7: =E15 -> 1 | F7: =F15 -> 1
A8: C6 | B8: Raio menor da seção em rampa (m): | C8: 100 | D8: 100 | E8: 100 | F8: 100
A9: C7 | B9: Raio maior da seção em rampa (m): | C9: 15100 | D9: 15100 | E9: 15100 | F9: 15100
A10: C8 | B10: Cota inferior da seção em rampa (m): | C10: =C15 -> 1 | D10: =D15 -> 1 | E10: =E15 -> 1 | F10: =F15 -> 1
A11: C9 | B11: Cota superior da seção em rampa (m): | C11: =(C9-C8)*C12+C7 -> 301 | D11: =(D9-D8)*D12+D7 -> 301 | E11: =(E9-E8)*E12+E7 -> 301 | F11: =(F9-F8)*F12+F7 -> 301
A12: C10 | B12: Gradiente da seção em rampa (%): | C12: 0.02 | D12: 0.02 | E12: 0.02 | F12: 0.02
B15: altituda da base da antena | C15: 1 | D15: 1 | E15: 1 | F15: 1
B16: LATITUDE | C16: 1 | D16: 1 | E16: 1 | F16: 1
C17: 1 | D17: 1 | E17: 1 | F17: 1
C18: 1 | D18: 1 | E18: 1 | F18: 1
B19: LONGITUDE | C19: 1 | D19: 1 | E19: 1
C20: 1 | D20: 1 | E20: 1 | F20: 1
C21: 1 | D21: 1 | E21: 1 | F21: 1

Sheet DVOR (hidden)
A2: D | B2: Radiofarol Omnidirecional em VHF (DVOR): | C2: DVOR 1 | D2: DVOR 2 | E2: DVOR 3 | F2: DVOR 4
A3: D1 | B3: Indicativo: | C3: 1 | D3: 1 | E3: 1 | F3: 1
A4: D2 | B4: Coordenadas geográficas (latitude): | C4: =C16*10000+C17*100+C18 -> 10101 | D4: =D16*10000+D17*100+D18 -> 10101 | E4: 10101 | F4: 10101
A5: D3 | B5: Coordenadas geográficas (longitude): | C5: =C19*10000+C20*100+C21 -> 10101 | D5: =D19*10000+D20*100+D21 -> 10101 | E5: 10001 | F5: 10001
A6: D4 | B6: Raio da seção horizontal (m): | C6: 100 | D6: 100 | E6: 100 | F6: 100
A7: D5 | B7: Cota da seção horizontal (m): | C7: =C15 -> 1 | D7: =D15 -> 1 | E7: =E15 -> 1 | F7: =F15 -> 1
A8: D6 | B8: Raio menor da seção em rampa (m): | C8: 100 | D8: 100 | E8: 100 | F8: 100
A9: D7 | B9: Raio maior da seção em rampa (m): | C9: 5100 | D9: 5100 | E9: 5100 | F9: 5100
A10: D8 | B10: Cota inferior da seção em rampa (m): | C10: =C15 -> 1 | D10: =D15 -> 1 | E10: =E15 -> 1 | F10: =F15 -> 1
A11: D9 | B11: Cota superior da seção em rampa (m): | C11: =C10+(C9-C8)*C12 -> 201 | D11: =D10+(D9-D8)*D12 -> 201 | E11: =E10+(E9-E8)*E12 -> 201 | F11: =F10+(F9-F8)*F12 -> 201
A12: D10 | B12: Gradiente da seção em rampa (%): | C12: 0.04 | D12: 0.04 | E12: 0.04 | F12: 0.04
B15: altituda da base da antena | C15: 1 | D15: 1 | E15: 1 | F15: 1
B16: LATITUDE | C16: 1 | D16: 1 | E16: 1 | F16: 1
C17: 1 | D17: 1 | E17: 1 | F17: 1
C18: 1 | D18: 1 | E18: 1 | F18: 1
B19: LONGITUDE | C19: 1 | D19: 1 | E19: 1 | F19: 1
C20: 1 | D20: 1
C21: 1 | D21: 1 | E21: 1 | F21: 1

Sheet VDB (hidden)
A2: E | B2: Transmissor de Dados VHF (VDB): | C2: VDB 1 | D2: VDB 2 | E2: VDB 3 | F2: VDB 4
A3: E1 | B3: Indicativo: | C3: 1 | D3: 1 | E3: 1 | F3: 1
A4: E2 | B4: Coordenadas geográficas (latitude): | C4: =C16*10000+C17*100+C18 -> 10101 | D4: =D16*10000+D17*100+D18 -> 10101 | E4: 10101 | F4: 10001
A5: E3 | B5: Coordenadas geográficas (longitude): | C5: =C19*10000+C20*100+C21 -> 10101 | D5: =D19*10000+D20*100+D21 -> 10001 | E5: 101 | F5: 10101
A6: E4 | B6: Raio da seção horizontal (m): | C6: 100 | D6: 100 | E6: 100 | F6: 100
A7: E5 | B7: Cota da seção horizontal (m): | C7: =C15 -> 1 | D7: =D15 -> 1 | E7: =E15 -> 1 | F7: =F15 -> 1
A8: E6 | B8: Raio menor da seção em rampa (m): | C8: 100 | D8: 100 | E8: 100 | F8: 100
A9: E7 | B9: Raio maior da seção em rampa (m): | C9: 5100 | D9: 5100 | E9: 5100 | F9: 5100
A10: E8 | B10: Cota inferior da seção em rampa (m): | C10: =C15 -> 1 | D10: =D15 -> 1 | E10: =E15 -> 1 | F10: =F15 -> 1
A11: E9 | B11: Cota superior da seção em rampa (m): | C11: =(C9-C8)*C12+C7 -> 251 | D11: =(D9-D8)*D12+D7 -> 251 | E11: =(E9-E8)*E12+E7 -> 251 | F11: =(F9-F8)*F12+F7 -> 251
A12: E10 | B12: Gradiente da seção em rampa (%): | C12: 0.05 | D12: 0.05 | E12: 0.05 | F12: 0.05
B15: ALTURA DA BASE DA ANTENA | C15: 1 | D15: 1 | E15: 1 | F15: 1
C16: 1 | D16: 1 | E16: 1 | F16: 1
C17: 1 | D17: 1 | E17: 1
C18: 1 | D18: 1 | E18: 1 | F18: 1
C19: 1 | D19: 1 | F19: 1
C20: 1 | E20: 1 | F20: 1
C21: 1 | D21: 1 | E21: 1 | F21: 1

Sheet EST (hidden)
A2: F | B2: Estação de Referência: | C2: EST 1 | D2: EST 2 | E2: EST 3 | F2: EST 4
A3: F1 | B3: Indicativo:
A4: F2 | B4: Coordenadas geográficas (latitude): | C4: =C16*10000+C17*100+C18 -> 0 | D4: =D16*10000+D17*100+D18 -> 0 | E4: 0 | F4: 0
A5: F3 | B5: Coordenadas geográficas (longitude): | C5: =C19*10000+C20*100+C21 -> 0 | D5: =D19*10000+D20*100+D21 -> 0 | E5: 0 | F5: 0
A6: F4 | B6: Raio da seção horizontal (m): | C6: 50 | D6: 50 | E6: 50 | F6: 50
A7: F5 | B7: Cota da seção horizontal (m): | C7: =C15 -> 0 | D7: =D15 -> 0 | E7: =E15 -> 0 | F7: =F15 -> 0
A8: F6 | B8: Raio menor da seção em rampa (m): | C8: 50 | D8: 50 | E8: 50 | F8: 50
A9: F7 | B9: Raio maior da seção em rampa (m): | C9: 5050 | D9: 5050 | E9: 5050 | F9: 5050
A10: F8 | B10: Cota inferior da seção em rampa (m): | C10: =C15 -> 0 | D10: =D15 -> 0 | E10: =E15 -> 0 | F10: =F15 -> 0
A11: F9 | B11: Cota superior da seção em rampa (m): | C11: =+C15+(C9-C6)*C12 -> 250 | D11: =+D15+(D9-D6)*D12 -> 250 | E11: =+E15+(E9-E6)*E12 -> 250 | F11: =+F15+(F9-F6)*F12 -> 250
A12: F10 | B12: Gradiente da seção em rampa (%): | C12: 0.05 | D12: 0.05 | E12: 0.05 | F12: 0.05
B15: ALTITUDE DA BASE DA ANTENA | C15: 0 | D15: 0 | E15: 0 | F15: 0

Sheet GS (hidden)
A2: G | B2: Transmissor de Rampa de Planeio (GS): | C2: GS 1 | D2: GS 2 | E2: GS 3 | F2: GS 4
A3: G1 | B3: Cabeceira servida:
A4: G2 | B4: Coordenadas geográficas (latitude): | C4: =C16*10000+C17*100+C18 -> 0 | D4: =D16*10000+D17*100+D18 -> 0 | E4: 0 | F4: 0
A5: G3 | B5: Coordenadas geográficas (longitude): | C5: =C19*10000+C20*100+C21 -> 0 | D5: =D19*10000+D20*100+D21 -> 0 | E5: 0 | F5: 0
A6: G4 | B6: Comprimento da seção horizontal (m): | C6: 600 | D6: 600 | E6: 600 | F6: 600
A7: G5 | B7: Largura da seção horizontal (m): | C7: =C14+120 -> 120 | D7: =D14+120 -> 120 | E7: =E14+120 -> 120 | F7: =F14+120 -> 120
A8: G6 | B8: Cota da seção horizontal (m): | C8: =C15 -> 0 | D8: =D15 -> 0 | E8: =E15 -> 0 | F8: =F15 -> 0
A9: G7 | B9: Comprimento da seção em rampa (m): | C9: 9000 | D9: 9000 | E9: 9000 | F9: 9000
A10: G8 | B10: Largura da seção em rampa (m): | C10: =C7 -> 120 | D10: =D7 -> 120 | E10: =E7 -> 120 | F10: =F7 -> 120
A11: G9 | B11: Cota inferior da seção em rampa (m): | C11: =C15 -> 0 | D11: =D15 -> 0 | E11: =E15 -> 0 | F11: =F15 -> 0
A12: G10 | B12: Cota superior da seção em rampa (m): | C12: =C15+(C9*C13) -> 180 | D12: =D15+(D9*D13) -> 180 | E12: =E15+(E9*E13) -> 180 | F12: =F15+(F9*F13) -> 180
A13: G11 | B13: Gradiente da seção em rampa (%): | C13: 0.02 | D13: 0.02 | E13: 0.02 | F13: 0.02
B14: DISTANCIA ENTRE ANTENA E LATERAL DA PISTA (x) | E14: 0 | F14: 0
B15: ALTURA DA BASE DA ANTENA | E15: 0 | F15: 0

Sheet LOC (hidden)
A2: H | B2: Localizador (LOC): | C2: LOC 1 | D2: LOC 2 | E2: LOC 3 | F2: LOC 4
A3: H1 | B3: Indicativo:
A4: H2 | B4: Coordenadas geográficas (latitude): | C4: =C16*10000+C17*100+C18 -> 0 | D4: =D16*10000+D17*100+D18 -> 0 | E4: 0 | F4: 0
A5: H3 | B5: Coordenadas geográficas (longitude): | C5: =C19*10000+C20*100+C21 -> 0 | D5: =D19*10000+D20*100+D21 -> 0 | E5: 0 | F5: 0
A6: H4 | B6: Comprimento da seção horizontal (m): | C6: =C14+75 -> 75 | D6: =D14+75 -> 75 | E6: =E14+75 -> 75 | F6: =F14+75 -> 75
A7: H5 | B7: Largura da seção horizontal (m): | C7: 150 | D7: 150 | E7: 150 | F7: 150
A8: H6 | B8: Cota da seção horizontal (m): | C8: =C15 -> 0 | D8: =D15 -> 0 | E8: =E15 -> 0 | F8: =F15 -> 0
B14: DISTANCIA DO EIXO DAS ANTENAS À CABECEIRA | E14: 0 | F14: 0
B15: ALTITUDE DA BASE DAS ANTENAS | E15: 0 | F15: 0

Sheet MARC (hidden)
A2: I | B2: Marcador: | C2: MARC 1 | D2: MARC 2 | E2: MARC 3 | F2: MARC 4
A3: I1 | B3: Indicativo:
A4: I2 | B4: Cabeceira servida:
A5: I3 | B5: Coordenadas geográficas (latitude): | C5: =C16*10000+C17*100+C18 -> 0 | D5: =D16*10000+D17*100+D18 -> 0 | E5: 0 | F5: 0
A6: I4 | B6: Coordenadas geográficas (longitude): | C6: =C19*10000+C20*100+C21 -> 0 | D6: =D19*10000+D20*100+D21 -> 0 | E6: 0 | F6: 0
A7: I5 | B7: Raio da seção horizontal (m): | C7: 15 | D7: 15 | E7: 15 | F7: 15
A8: I6 | B8: Cota da seção horizontal (m): | C8: =C15 -> 0 | D8: =D15 -> 0 | E8: =E15 -> 0 | F8: =F15 -> 0
B15: BASE DO MARCADOR

Sheet ALS (hidden)
A2: J | B2: Sistema de Iluminação de Aproximação (ALS): | C2: ALS 1 | D2: ALS 2 | E2: ALS 3 | F2: ALS 4
A3: J1 | B3: Cabeceira servida:
A4: J2 | B4: Comprimento da seção horizontal (m): | C4: =C14+100 -> 100 | D4: =D14+100 -> 100 | E4: =E14+100 -> 100 | F4: =F14+100 -> 100
A5: J3 | B5: Largura da seção horizontal (m): | C5: 120 | D5: 120 | E5: 120 | F5: 120
A6: J4 | B6: Cota da seção horizontal (m): | C6: =C15 -> 0 | D6: =D15 -> 0 | E6: =E15 -> 0 | F6: =F15 -> 0
A7: J5 | B7: Comprimento da seção em rampa (m): | C7: 9000 | D7: 9000 | E7: 9000 | F7: 9000
A8: J6 | B8: Largura da seção em rampa (m): | C8: 120 | D8: 120 | E8: 120 | F8: 120
A9: J7 | B9: Cota inferior da seção em rampa (m): | C9: =C15 -> 0 | D9: =D15 -> 0 | E9: =E15 -> 0 | F9: =F15 -> 0
A10: J8 | B10: Cota superior da seção em rampa (m): | C10: =C15+(C7*C11) -> 180 | D10: =D15+(D7*D11) -> 180 | E10: =E15+(E7*E11) -> 180 | F10: =F15+(F7*F11) -> 180
A11: J9 | B11: Gradiente da seção em rampa (%): | C11: 0.02 | D11: 0.02 | E11: 0.02 | F11: 0.02
B14: DISTANCIA CABECEIRA À ÚLTIMA BARRA DE LUZES | C14: 0 | D14: 0 | E14: 0 | F14: 0
B15: COTA DA CABECEIRA ATENDIDA | C15: 0 | D15: 0 | E15: 0 | F15: 0

Sheet VASIS (hidden)
A2: K | B2: Sistemas Indicadores de Rampa de Aproximação Visual (VASIS, PAPI e APAPI): | C2: EQUIP 1 | D2: EQUIP 2 | E2: EQUIP 3 | F2: EQUIP 4 | H2: VFR
A3: K1 | B3: Cabeceira servida: | C3: =C14 -> 30 | D3: =D14 -> 0 | E3: =E14 -> 0 | F3: =F14 -> 0 | H3: IFR | I3: 1 | J3: VASIS
A4: K2 | B4: Largura da borda interna (m): | C4: =IF(AND(C12>2,C13="VFR"),150,IF(AND(C12<3,C13="IFR"),150,IF(C12=1,30,IF(C12=2,60,300)))) -> 60 | D4: =IF(AND(D12>2,D13="VFR"),150,IF(AND(D12<3,D13="IFR"),150,IF(D12=1,30,IF(D12=2,60,300)))) -> 300 | E4: =IF(AND(E12>2,E13="VFR"),150,IF(AND(E12<3,E13="IFR"),150,IF(E12=1,30,IF(E12=2,60,300)))) -> 300 | F4: =IF(AND(F12>2,F13="VFR"),150,IF(AND(F12<3,F13="IFR"),150,IF(F12=1,30,IF(F12=2,60,300)))) -> 300 | H4: VFR | I4: 2 | J4: PAPI
A5: K3 | B5: Distância da cabeceira (m): | C5: =IF(AND(C12=1,C13="VFR"),30,60) -> 60 | D5: =IF(AND(D12=1,D13="VFR"),30,60) -> 60 | E5: =IF(AND(E12=1,E13="VFR"),30,60) -> 60 | F5: =IF(AND(F12=1,F13="VFR"),30,60) -> 60 | I5: 3 | J5: APAPI
A6: K4 | B6: Elevação da borda interna (m): | C6: =C15 -> 722.6 | D6: =D15 -> 0 | E6: =E15 -> 0 | F6: =F15 -> 0 | I6: 4
A7: K5 | B7: Divergência (%): | C7: =IF(C13="IFR",0.15,0.1) -> 0.1 | D7: =IF(D13="IFR",0.15,0.1) -> 0.1 | E7: =IF(E13="IFR",0.15,0.1) -> 0.1 | F7: =IF(F13="IFR",0.15,0.1) -> 0.1
A8: K6 | B8: Comprimento (m): | C8: =IF(C12<3,7500,15000) -> 7500 | D8: =IF(D12<3,7500,15000) -> 7500 | E8: =IF(E12<3,7500,15000) -> 7500 | F8: =IF(F12<3,7500,15000) -> 7500
A9: K7 | B9: Gradiente (%): | C9: =IF(C16="vasis",IF(C12=1,"NA",TAN(1.9*PI()/180)),IF(C16="papi",IF(OR(C12>1,C13="IFR"),TAN((C17-0.57)*PI()/180),"NA"),IF(C16="apapi",IF(C12<3,TAN((C17-0.9)*PI()/180),"NA")))) -> 0.03142626604 | D9: =IF(D16="vasis",IF(D12=1,"NA",TAN(1.9*PI()/180)),IF(D16="papi",IF(OR(D12>1,D13="IFR"),TAN((D17-0.57)*PI()/180),"NA"),IF(D16="apapi",IF(D12<3,TAN((D17-0.9)*PI()/180),"NA")))) -> FALSE | E9: FALSE | F9: FALSE
A10: K8 | B10: Elevação da borda externa (m): | C10: =C8*C9+C15 -> 958.2969953 | D10: =D8*D9+D15 -> 0 | E10: =E8*E9+E15 -> 0 | F10: =F8*F9+F15 -> 0
K11: =TAN(45*PI()/180) -> 1
B12: NÚMERO DO CÓDIGO DE REFERÊNCIA | C12: 2
B13: TIPO DE OPERAÇÃO | C13: VFR
B14: CABECEIRA SERVIDA | C14: 30
B15: ELEVAÇÃO DA CABECEIRA SERVIDA | C15: 722.6
B16: EQUIPAMENTO | C16: APAPI
B17: ÂNGULO INFERIOR (INFORMADO PELO GEIV) | C17: 2.7

Sheet ASR (hidden)
A2: L | B2: Radar de Vigilância (ASR) / Meteorológico: | C2: EQUIP 1 | D2: EQUIP 2 | E2: EQUIP 3 | F2: EQUIP 4
A3: L1 | B3: Coordenadas geográficas (latitude): | C3: =C16*10000+C17*100+C18 -> 0 | D3: =D16*10000+D17*100+D18 -> 0 | E3: 0 | F3: 0
A4: L2 | B4: Coordenadas geográficas (longitude): | C4: =C19*10000+C20*100+C21 -> 0 | D4: =D19*10000+D20*100+D21 -> 0 | E4: 0 | F4: 0
A5: L3 | B5: Raio da seção horizontal (m): | C5: 100 | D5: 100 | E5: 100 | F5: 100
A6: L4 | B6: Cota da seção horizontal (m): | C6: =C15 -> 0 | D6: =D15 -> 0 | E6: =E15 -> 0 | F6: =F15 -> 0
A7: L5 | B7: Raio menor da seção em rampa (m): | C7: 100 | D7: 100 | E7: 100 | F7: 100
A8: L6 | B8: Raio maior da seção em rampa (m): | C8: 5100 | D8: 5100 | E8: 5100 | F8: 5100
A9: L7 | B9: Cota inferior da seção em rampa (m): | C9: =C15 -> 0 | D9: =D15 -> 0 | E9: =E15 -> 0 | F9: =F15 -> 0
A10: L8 | B10: Cota superior da seção em rampa (m): | C10: =C9+(C8-C7)*C11 -> 250 | D10: =D9+(D8-D7)*D11 -> 250 | E10: =E9+(E8-E7)*E11 -> 250 | F10: =F9+(F8-F7)*F11 -> 250
A11: L9 | B11: Gradiente da seção em rampa (%): | C11: 0.05 | D11: 0.05 | E11: 0.05 | F11: 0.05
B15: BASE DA ANTENA | C15: 0 | D15: 0 | E15: 0 | F15: 0

Sheet ADSB (hidden)
A2: N | B2: Vigilância com Localização Automática Dependente por Radiodifusão (ADS-B): | C2: ADS-B 1 | D2: ADS-B 2 | E2: ADS-B 3 | F2: ADS-B 4
A3: N1 | B3: Coordenadas geográficas (latitude): | C3: =C18*10000+C19*100+C20 -> 0 | D3: =D18*10000+D19*100+D20 -> 0 | E3: 0 | F3: 0
A4: N2 | B4: Coordenadas geográficas (longitude): | C4: =C21*10000+C22*100+C23 -> 0 | D4: =D21*10000+D22*100+D23 -> 0 | E4: 0 | F4: 0
A5: N3 | B5: Raio da seção horizontal (m): | C5: 100 | D5: 100 | E5: 100 | F5: 100
A6: N4 | B6: Cota da seção horizontal (m): | C6: =C15 -> 0 | D6: =D15 -> 0 | E6: =E15 -> 0 | F6: =F15 -> 0
A7: N5 | B7: Raio menor da seção em rampa (m): | C7: 100 | D7: 100 | E7: 100 | F7: 100
A8: N6 | B8: Raio maior da seção em rampa (m): | C8: 5100 | D8: 5100 | E8: 5100 | F8: 5100
A9: N7 | B9: Cota inferior da seção em rampa (m): | C9: =C15 -> 0 | D9: =D15 -> 0 | E9: =E15 -> 0 | F9: =F15 -> 0
A10: N8 | B10: Cota superior da seção em rampa (m): | C10: =C9+(C8-C7)*C11 -> 250 | D10: =D9+(D8-D7)*D11 -> 250 | E10: =E9+(E8-E7)*E11 -> 250 | F10: =F9+(F8-F7)*F11 -> 250
A11: N9 | B11: Gradiente da seção em rampa (%): | C11: 0.05 | D11: 0.05 | E11: 0.05 | F11: 0.05
B15: BASE DA ANTENA DO ADS | C15: 0 | D15: 0 | E15: 0 | F15: 0

Sheet PAR (hidden)
A2: M | B2: Radar de Aproximação de Precisão (PAR): | C2: PAR 1 | D2: PAR 2 | E2: PAR 3 | F2: PAR 4
A3: M1 | B3: Coordenadas geográficas (latitude): | C3: =C24*10000+C25*100+C26 -> 0 | D3: =D24*10000+D25*100+D26 -> 0 | E3: 0 | F3: 0
A4: M2 | B4: Coordenadas geográficas (longitude): | C4: =C27*10000+C28*100+C29 -> 0 | D4: =D27*10000+D28*100+D29 -> 0 | E4: 0 | F4: 0
A5: M3 | B5: Raio da seção horizontal 1 (m): | C5: 100 | D5: 100 | E5: 100 | F5: 100
A6: M4 | B6: Cota da seção horizontal 1 (m): | C6: =C20 -> 0 | D6: =D20 -> 0 | E6: =E20 -> 0 | F6: =F20 -> 0
A7: M5 | B7: Abertura para o lado da pista da seção horizontal 2 (%): | C7: =TAN(C21*PI()/180) -> 0.3639702343 | D7: 0.3639702343 | E7: 0.3639702343 | F7: 0.3639702343
A8: M6 | B8: Abertura para o lado oposto da pista da seção horizontal 2 (%): | C8: 0.1763269807 | D8: 0.1763269807 | E8: 0.1763269807 | F8: 0.1763269807
A9: M7 | B9: Raio da seção horizontal 2 (m): | C9: =C23 -> 0 | D9: =D23 -> 0 | E9: =E23 -> 0 | F9: =F23 -> 0
A10: M8 | B10: Cota da seção horizontal 2 (m): | C10: =C20 -> 0 | D10: =D20 -> 0 | E10: =E20 -> 0 | F10: =F20 -> 0
A11: M9 | B11: Abertura para o lado da pista da seção em rampa (%): | C11: =C7 -> 0.3639702343 | D11: 0.3639702343 | E11: 0.3639702343 | F11: 0.3639702343
A12: M10 | B12: Abertura para o lado oposto da pista da em rampa (%): | C12: 0.1763269807 | D12: 0.1763269807 | E12: 0.1763269807 | F12: 0.1763269807
A13: M11 | B13: Raio menor da seção em rampa (m): | C13: 0 | D13: 0 | E13: 0 | F13: 0
A14: M12 | B14: Raio maior da seção em rampa (m): | C14: =C13+5000 -> 5000 | D14: =D13+5000 -> 5000 | E14: =E13+5000 -> 5000 | F14: =F13+5000 -> 5000
A15: M13 | B15: Cota inferior da seção em rampa (m): | C15: =C10 -> 0 | D15: =D10 -> 0 | E15: =E10 -> 0 | F15: =F10 -> 0
A16: M14 | B16: Cota superior da seção em rampa (m): | C16: =C15+(5000*C17) -> 100 | D16: =D15+(5000*D17) -> 100 | E16: =E15+(5000*E17) -> 100 | F16: =F15+(5000*F17) -> 100
A17: M15 | B17: Gradiente da seção em rampa (%): | C17: 0.02 | D17: 0.02 | E17: 0.02 | F17: 0.02
B20: ALTITUDE DA BASE DA ESTRUTURA DO PAR | C20: 0 | D20: 0 | E20: 0 | F20: 0
B21: ABERTURA PARA O LADO DA PISTA (GRAUS) | C21: 20 | D21: 20 | E21: 20 | F21: 20
B22: ABERTURA PARA O LADO OPOSTO DA PISTA (GRAUS) | C22: 10 | D22: 10 | E22: 10 | F22: 10
B23: DISTANCIA DA BASE DA ANTENA AO PONTO DE TOQUE | C23: 0 | D23: 0 | E23: 0 | F23: 0
